bitfinex/quotes_SOLUSD_20260103
["timestamp","ask_amount","ask_price","bid_price","bid_amount"]
[1767400350115,0.42631353,132.87,132.84,0.69632515]
[1767400351840,0.42631353,132.87,132.84,8.22415368]
[1767400353135,0.42631353,132.87,132.85,0.69632515]
[1767400353440,11.62871412,132.88,132.85,0.69632515]
[1767400354418,0.43077601,132.87,132.85,0.69632515]
[1767400354617,11.62871412,132.88,132.85,0.69632515]
[1767400357544,8.20091708,132.89,132.86,0.69632515]
[1767400359043,0.67551738,132.89,132.86,8.22264299]
[1767400361451,21.79497985,132.91,132.88,0.69632515]
[1767400361642,21.79497985,132.91,132.88,0.66688357]
[1767400362238,8.05497985,132.91,132.88,0.63719802]
[1767400363038,11.48256971,132.91,132.88,0.63719802]
[1767400363243,0.67551738,132.9,132.86,10.95404809]
[1767400364231,0.67551738,132.9,132.87,0.69632515]
[1767400365628,0.67365533,132.88,132.85,8.22340091]
[1767400365833,0.67365533,132.88,132.85,0.69632515]
[1767400366034,4.10124519,132.88,132.85,0.69632515]
[1767400366641,4.10124519,132.88,132.85,8.22356976]
[1767400367252,3.42758986,132.88,132.86,0.69632515]
[1767400368656,4.10310724,132.89,132.86,0.69632515]
[1767400369356,11.62816693,132.89,132.86,0.69632515]
[1767400372640,8.20057707,132.89,132.86,0.69632515]
[1767400372840,0.77551738,132.91,132.87,0.69632515]
[1767400373052,5.07107411,132.9,132.87,0.69632515]
[1767400373753,5.07107411,132.9,132.87,8.22203853]
[1767400373956,5.07107411,132.9,132.88,0.69632515]
[1767400374158,0.1,132.91,132.88,2.19392633]
[1767400374354,5.17221509,132.91,132.88,2.19392633]
[1767400376038,5.17221509,132.91,132.89,0.69632515]
[1767400376340,0.1,132.91,132.89,2.19392633]
[1767400376759,0.1,132.91,132.89,2.16434509]
[1767400376965,0.1,132.91,132.89,7.52492158]
[1767400377570,0.1,132.91,132.88,7.52535297]
[1767400377742,0.1,132.91,132.88,9.7192793]
[1767400378249,0.1,132.91,132.89,0.69632515]
[1767400378849,7.62290453,132.93,132.91,0.69632515]
[1767400379055,8.29842191,132.93,132.89,9.71893227]
[1767400381365,8.29842191,132.93,132.89,2.19392633]
[1767400381557,10.49234824,132.93,132.88,9.71927223]
[1767400382160,0.70108067,132.92,132.88,9.71927223]
[1767400383766,0.70108067,132.91,132.86,13.74]
[1767400384067,2.895007,132.91,132.86,13.74]
[1767400384660,2.895007,132.91,132.86,15.93392633]
[1767400384867,10.4192037,132.91,132.86,23.46039736]
[1767400385165,8.22527737,132.91,132.86,23.46039736]
[1767400385465,10.4192037,132.91,132.86,23.46039736]
[1767400386266,0.70108067,132.9,132.86,23.46039736]
[1767400386754,0.70108067,132.9,132.86,9.72039736]
[1767400387871,8.22555522,132.9,132.86,9.72039736]
[1767400388075,8.22555522,132.9,132.86,7.52647103]
[1767400388474,0.70108067,132.89,132.86,7.52647103]
[1767400392360,0.70108067,132.88,132.84,7.52748798]
[1767400392554,0.70108067,132.87,132.82,2.19392633]
[1767400392758,0.70108067,132.87,132.83,7.52812039]
[1767400398661,0.70108067,132.86,132.83,7.52812039]
[1767400408790,9.71976138,132.88,132.83,9.72204672]
[1767400408791,8.23423566,132.88,132.83,9.72204672]
[1767400409595,0.72010525,132.87,132.83,9.72204672]
[1767400411486,0.69010525,132.87,132.83,9.75204672]
[1767400412871,0.69010525,132.87,132.83,7.55812039]
[1767400414196,0.69010525,132.87,132.84,0.03]
[1767400419099,0.72010525,132.85,132.82,13.77]
[1767400419401,0.72010525,132.85,132.81,7.55920948]
[1767400421486,0.72010525,132.85,132.82,0.03]
[1767400425191,0.72010525,132.85,132.81,7.55955349]
[1767400425399,10.44079898,132.86,132.82,0.03]
[1767400427718,2.91403158,132.86,132.82,0.03]
[1767400427892,0.72010525,132.86,132.82,0.03]
[1767400429995,0.72010525,132.85,132.82,0.03]
[1767400433610,2.91403158,132.87,132.82,0.03]
[1767400433810,5.78943695,132.86,132.82,0.03]
[1767400434019,0.72010525,132.86,132.82,0.03]
[1767400436619,4.1493463,132.86,132.82,0.03]
[1767400437328,0.72010525,132.85,132.82,0.03]
[1767400440210,0.69918115,132.86,132.82,0.03]
[1767400440834,0.69918115,132.85,132.81,7.55955349]
[1767400441009,0.69918115,132.84,132.81,7.55955349]
[1767400442720,0.69918115,132.83,132.8,21.29990241]
[1767400442925,3.42924105,132.84,132.77,18.88915587]
[1767400442926,3.42924105,132.81,132.77,18.88915587]
[1767400443928,3.42924105,132.82,132.79,7.53065625]
[1767400444118,26.34751157,132.84,132.8,7.5300908]
[1767400444119,3.42924105,132.83,132.8,7.5300908]
[1767400444315,3.42924105,132.83,132.79,7.59046953]
[1767400444813,0.69918115,132.82,132.79,0.06]
[1767400445612,4.1284222,132.82,132.79,0.06]
[1767400448516,0.69918115,132.81,132.78,0.06]
[1767400451915,0.69918115,132.81,132.77,26.42097781]
[1767400452115,0.69918115,132.81,132.78,0.06]
[1767400452324,0.69918115,132.81,132.77,26.42097781]
[1767400452531,3.42924105,132.8,132.77,7.53182194]
[1767400452835,0.69918115,132.79,132.77,7.53182194]
[1767400453032,0.69918115,132.79,132.76,13.74]
[1767400453236,0.69918115,132.79,132.77,7.53179666]
[1767400458924,0.69918115,132.79,132.76,7.59238927]
[1767400463931,0.69918115,132.79,132.76,29.8526035]
[1767400464249,10.9584739,132.82,132.77,0.67269331]
[1767400464940,10.9584739,132.82,132.78,7.5312547]
[1767400466148,0.69918115,132.81,132.78,7.5312547]
[1767400467748,4.1284222,132.81,132.78,7.5312547]
[1767400468055,0.69918115,132.8,132.77,7.53158317]
[1767400469362,0.69918115,132.8,132.77,7.53165873]
[1767400487959,0.65728575,132.79,132.76,8.18688087]
[1767400488970,0.65728575,132.79,132.76,7.53213838]
[1767400489275,3.42924105,132.79,132.76,7.53213838]
[1767400490875,3.42924105,132.79,132.75,21.95497743]
[1767400491085,0.65728575,132.78,132.75,21.95497743]
[1767400491287,0.65728575,132.78,132.75,7.53270793]
[1767400492474,0.65728575,132.78,132.75,8.21497743]
[1767400494249,0.65728575,132.79,132.77,0.6822695]
[1767400494474,0.65728575,132.8,132.77,8.21376393]
[1767400495272,0.65728575,132.82,132.79,0.6822695]
[1767400495474,5.73342125,132.81,132.79,0.6822695]
[1767400495652,0.65728575,132.81,132.79,0.6822695]
[1767400496078,0.65728575,132.81,132.78,4.11151055]
[1767400496378,0.65728575,132.81,132.78,11.64230369]
[1767400496560,0.65728575,132.81,132.79,0.6822695]
[1767400497080,0.65728575,132.81,132.78,10.40881861]
[1767400500072,0.65728575,132.81,132.79,8.22147329]
[1767400500273,9.72368153,132.84,132.79,8.22147329]
[1767400500274,0.72145077,132.83,132.79,10.41722926]
[1767400500465,5.79802846,132.82,132.79,10.41722926]
[1767400500777,0.72145077,132.82,132.79,8.22147329]
[1767400505592,0.72145077,132.79,132.73,2.19575597]
[1767400505777,6.3095821,132.84,132.73,2.19575597]
[1767400505778,0.72145077,132.77,132.74,7.53352418]
[1767400506265,0.72145077,132.77,132.74,8.22438341]
[1767400510590,13.74,132.81,132.75,0.69085923]
[1767400510781,5.07259197,132.8,132.77,0.69085923]
[1767400510982,13.74,132.81,132.77,0.69085923]
[1767400511385,13.74,132.81,132.76,2.8866152]
[1767400511604,13.74,132.81,132.77,0.69085923]
[1767400512405,9.72509442,132.82,132.78,0.69085923]
[1767400512579,5.07236464,132.81,132.78,0.69085923]
[1767400513082,2.91720674,132.82,132.78,0.69085923]
[1767400513779,0.72145077,132.82,132.78,0.69085923]
[1767400514690,8.25044658,132.82,132.78,8.22200678]
[1767400515301,8.25044658,132.82,132.79,0.69085923]
[1767400516705,10.44579745,132.83,132.79,0.69085923]
[1767400517181,0.72145077,132.82,132.79,0.69085923]
[1767400519504,7.52859071,132.83,132.79,9.7263635]
[1767400519682,18.82047895,132.84,132.8,0.69085923]
[1767400519683,7.52805784,132.84,132.8,0.69085923]
[1767400519887,5.06981991,132.83,132.8,0.69085923]
[1767400520196,0.72145077,132.83,132.8,0.69085923]
[1767400520802,8.24994362,132.83,132.8,0.69085923]
[1767400521390,0.72145077,132.82,132.79,7.53060753]
[1767400521599,0.72145077,132.82,132.79,8.22146676]
[1767400525108,0.72145077,132.82,132.79,7.53060753]
[1767400525608,0.72145077,132.81,132.79,7.53060753]
[1767400527220,0.72145077,132.81,132.79,0.69085923]
[1767400528609,0.72145077,132.81,132.77,26.36068084]
[1767400529118,2.19575597,132.82,132.77,27.06086946]
[1767400529713,2.19575597,132.81,132.77,27.01804372]
[1767400529899,2.19575597,132.79,132.77,7.53182194]
[1767400530998,2.85973185,132.79,132.77,7.53182194]
[1767400536421,0.66397588,132.79,132.77,7.53182194]
[1767400539136,0.63397588,132.79,132.77,7.53182194]
[1767400543751,0.63397588,132.79,132.76,7.53216508]
[1767400544221,0.63397588,132.79,132.76,8.18952796]
[1767400546148,2.82973185,132.79,132.76,8.18952796]
[1767400553342,0.66397588,132.78,132.76,7.53216508]
[1767400553656,2.85973185,132.77,132.75,7.53276453]
[1767400556253,0.66397588,132.77,132.75,7.53276453]
[1767400557759,0.66397588,132.77,132.75,0.65736288]
[1767400558362,4.09810752,132.78,132.75,0.65736288]
[1767400558935,4.09810752,132.78,132.75,8.19005464]
[1767400559756,0.70924759,132.77,132.75,0.65736288]
[1767400560055,34.18513253,132.76,132.69,0.2]
[1767400560355,34.18513253,132.76,132.71,0.67920318]
[1767400560356,5.06974743,132.75,132.71,0.67920318]
[1767400560747,17.88337923,132.76,132.71,0.67920318]
[1767400560951,3.43413164,132.74,132.71,8.21422498]
[1767400561659,3.7504653,132.75,132.71,8.21422498]
[1767400561861,0.31633366,132.75,132.71,8.21422498]
[1767400563848,3.7504653,132.75,132.71,8.21422498]
[1767400564663,0.70531845,132.74,132.71,8.21422498]
[1767400566463,0.70531845,132.74,132.72,0.67920318]
[1767400566656,0.70924759,132.75,132.72,0.67920318]
[1767400568775,0.31633366,132.74,132.71,0.67920318]
[1767400569065,0.7014675,132.71,132.69,0.2]
[1767400569243,3.75816758,132.7,132.69,1e-08]
[1767400569443,3.75816758,132.7,132.68,0.2]
[1767400570246,0.32777251,132.68,132.66,0.2]
[1767400570445,3.76190415,132.68,132.66,0.2]
[1767400570659,0.32777251,132.68,132.66,0.2]
[1767400570864,17.88337923,132.7,132.66,0.87920318]
[1767400571167,0.70924759,132.7,132.67,8.21665951]
[1767400571370,0.70924759,132.7,132.67,0.67920318]
[1767400571556,3.7504653,132.69,132.66,0.87920318]
[1767400572350,11.28714944,132.69,132.66,0.87920318]
[1767400572564,3.43413164,132.68,132.66,0.87920318]
[1767400574070,7.8530178,132.69,132.66,0.87920318]
[1767400574270,11.28714944,132.69,132.66,0.87920318]
[1767400574449,25.04714944,132.69,132.64,10.9731767]
[1767400574989,25.04714944,132.69,132.65,3.43413164]
[1767400574990,0.31633366,132.69,132.65,3.43413164]
[1767400576167,0.31633366,132.69,132.66,7.53806712]
[1767400576366,0.70924759,132.7,132.66,10.97219876]
[1767400576571,14.46924759,132.7,132.67,0.67920318]
[1767400576977,0.70924759,132.69,132.66,8.2172703]
[1767400579765,25.43879856,132.71,132.67,0.67920318]
[1767400580179,22.00466692,132.71,132.67,0.67920318]
[1767400580363,14.46924759,132.71,132.68,0.67920318]
[1767400580556,14.46924759,132.71,132.67,3.43413164]
[1767400580872,0.70924759,132.7,132.67,3.43413164]
[1767400581072,14.46924759,132.71,132.68,7.53693096]
[1767400581258,14.46924759,132.71,132.67,3.43413164]
[1767400582252,14.46924759,132.71,132.66,3.43413164]
[1767400582451,0.70924759,132.7,132.66,3.43413164]
[1767400582652,0.70924759,132.7,132.67,0.6128171]
[1767400582988,0.70924759,132.7,132.67,8.15007175]
[1767400588085,0.71738103,132.69,132.65,0.6128171]
[1767400588294,0.71738103,132.67,132.64,8.15178546]
[1767400588792,0.71738103,132.67,132.64,7.53896836]
[1767400588993,0.71738103,132.66,132.63,0.2]
[1767400589167,4.15151267,132.66,132.63,0.2]
[1767400589363,0.71738103,132.66,132.63,0.2]
[1767400591070,0.71738103,132.66,132.63,7.7397093]
[1767400591566,0.71738103,132.66,132.63,8.3525264]
[1767400591771,0.71738103,132.66,132.63,11.78665804]
[1767400592576,22.27585763,132.69,132.63,11.78665804]
[1767400592577,0.69740631,132.67,132.64,8.151872]
[1767400593986,0.69740631,132.67,132.64,7.5390549]
[1767400595287,3.43413164,132.7,132.65,4.04694874]
[1767400595594,14.45740631,132.69,132.65,4.04694874]
[1767400595769,0.69740631,132.7,132.67,0.6128171]
[1767400595970,0.69740631,132.71,132.68,0.6128171]
[1767400596273,0.69740631,132.73,132.69,4.04694874]
[1767400597091,0.69740631,132.73,132.69,11.583181]
[1767400597798,0.69740631,132.73,132.69,8.14904936]
[1767400599300,0.69740631,132.72,132.69,7.53623226]
[1767400599796,4.13153795,132.72,132.69,7.53623226]
[1767400600599,4.13153795,132.72,132.68,8.14961955]
[1767400601996,0.69740631,132.71,132.68,8.14961955]
[1767400602186,0.69740631,132.71,132.68,7.53680245]
[1767400603697,0.69740631,132.72,132.69,0.6128171]
[1767400604796,0.69740631,132.72,132.69,8.14864998]
[1767400605036,0.69740631,132.73,132.69,11.58278162]
[1767400605793,0.69740631,132.74,132.71,4.04694874]
[1767400606885,0.69740631,132.74,132.72,7.53465943]
[1767400607087,0.69740631,132.74,132.71,11.58192834]
[1767400613006,0.69740631,132.75,132.72,0.6128171]
[1767400613206,0.69740631,132.75,132.72,4.04694874]
[1767400613579,0.69740631,132.75,132.72,0.6128171]
[1767400614107,0.69740631,132.75,132.72,11.58114806]
[1767400614303,0.69740631,132.75,132.72,8.14701642]
[1767400614607,0.69740631,132.75,132.72,7.53419932]
[1767400616284,0.69740631,132.75,132.72,8.14701642]
[1767400618109,0.69740631,132.75,132.72,7.53419932]
[1767400618485,0.69740631,132.74,132.71,7.53506459]
[1767400618812,0.69740631,132.74,132.71,8.14788169]
[1767400621007,0.70437656,132.73,132.69,0.6128171]
[1767400621305,0.70437656,132.73,132.69,8.14886408]
[1767400622089,0.70437656,132.73,132.69,7.53604698]
[1767400622090,0.70437656,132.72,132.69,7.53604698]
[1767400623914,0.70437656,132.71,132.69,7.53604698]
[1767400625914,2.90287988,132.7,132.66,0.6128171]
[1767400626812,0.70437656,132.7,132.66,0.6128171]
[1767400627195,0.70437656,132.7,132.67,7.5374859]
[1767400628022,0.70437656,132.69,132.67,7.5374859]
[1767400628893,0.70437656,132.69,132.66,8.15064958]
[1767400629595,0.67437656,132.69,132.66,7.53783248]
[1767400630512,0.67437656,132.69,132.66,8.18064958]
[1767400632003,0.70437656,132.68,132.66,7.53783248]
[1767400633217,0.67437656,132.68,132.66,7.53783248]
[1767400641826,0.67437656,132.68,132.65,8.18130149]
[1767400642325,0.67437656,132.68,132.63,16.15850332]
[1767400642326,0.70437656,132.66,132.63,8.39453135]
[1767400651038,0.71526162,132.65,132.63,0.2]
[1767400657951,0.71526162,132.65,132.63,7.73966988]
[1767400660040,0.71526162,132.66,132.63,8.41248698]
[1767400666565,0.68526162,132.66,132.63,8.41248698]
[1767400684172,21.29719756,132.68,132.64,0.7028171]
[1767400684173,0.68326963,132.68,132.64,0.7028171]
[1767400685078,0.68326963,132.68,132.64,8.24146161]
[1767400685271,0.68326963,132.68,132.65,0.7028171]
[1767400687472,0.68326963,132.68,132.64,27.08947126]
[1767400687681,0.68326963,132.67,132.65,7.53857901]
[1767400689578,3.43945727,132.67,132.63,0.9028171]
[1767400690366,3.43945727,132.67,132.64,0.7118682]
[1767400690567,3.43945727,132.68,132.64,8.25089768]
[1767400690767,10.72958804,132.67,132.64,8.25089768]
[1767400690955,3.43945727,132.68,132.64,8.25089768]
[1767400691161,10.72958642,132.67,132.64,8.25089768]
[1767400691362,3.43945727,132.68,132.64,8.25089768]
[1767400691564,11.41299869,132.67,132.64,8.25089768]
[1767400691861,0.68326963,132.67,132.64,8.25089768]
[1767400693383,0.24490027,132.65,132.63,0.2]
[1767400694983,0.24490027,132.65,132.63,0.9118682]
[1767400696273,0.24490027,132.65,132.63,8.45161519]
[1767400697860,0.68326963,132.67,132.64,0.7118682]
[1767400698297,0.68326963,132.68,132.64,0.7118682]
[1767400698468,0.68326963,132.68,132.66,0.7118682]
[1767400698896,0.68326963,132.68,132.65,8.2505037]
[1767400702611,5.76496988,132.67,132.65,8.2505037]
[1767400702894,0.68326963,132.67,132.65,7.5386355]
[1767400707393,0.68326963,132.67,132.64,0.7118682]
[1767400707394,0.68326963,132.67,132.64,8.25081414]
[1767400716700,21.29612923,132.7,132.65,0.67537015]
[1767400716910,11.4022081,132.69,132.65,4.11482742]
[1767400717115,5.08104958,132.68,132.66,0.67537015]
[1767400717281,0.67564141,132.71,132.67,0.67537015]
[1767400717585,0.67564141,132.73,132.68,4.11482742]
[1767400717786,0.67564141,132.74,132.71,0.67537015]
[1767400717991,0.67564141,132.74,132.71,0.64703218]
[1767400718807,0.67564141,132.74,132.72,7.53465943]
[1767400721097,0.67564141,132.75,132.72,0.67537015]
[1767400722301,0.67564141,132.75,132.72,8.20950712]
[1767400727705,0.67564141,132.75,132.73,0.67537015]
[1767400728008,0.67564141,132.75,132.72,7.53413697]
[1767400730007,0.67564141,132.75,132.72,8.20950712]
[1767400749023,0.67564141,132.75,132.73,8.24171316]
[1767400750320,0.6531951,132.77,132.74,0.70792095]
[1767400751020,0.6531951,132.77,132.74,0.67949647]
[1767400752017,0.6531951,132.77,132.73,7.53379221]
[1767400752018,0.6531951,132.76,132.73,7.53379221]
[1767400752398,0.6531951,132.76,132.72,18.83609447]
[1767400752619,0.6531951,132.75,132.72,18.83609447]
[1767400753218,0.6531951,132.75,132.72,19.54401542]
[1767400755418,0.6531951,132.75,132.73,0.70792095]
[1767400755601,0.6531951,132.76,132.73,0.70792095]
[1767400757335,0.6531951,132.76,132.73,8.24177779]
[1767400757518,0.6531951,132.76,132.72,8.24237013]
[1767400757831,0.6531951,132.75,132.73,7.53405176]
[1767400758230,0.6531951,132.76,132.74,0.70792095]
[1767400758736,0.6531951,132.76,132.73,7.53405176]
[1767400758737,0.6531951,132.76,132.73,8.24197271]
[1767400759730,0.6531951,132.76,132.74,0.70792095]
[1767400759929,0.6531951,132.78,132.74,0.70792095]
[1767400760828,0.6531951,132.78,132.74,0.67827173]
[1767400761033,0.6531951,132.78,132.75,7.53295668]
[1767400761332,16.0580606,132.8,132.75,7.53295668]
[1767400761333,2.9512557,132.8,132.75,7.53295668]
[1767400761634,5.07164662,132.79,132.75,9.73101728]
[1767400762132,5.07164662,132.79,132.75,28.56340899]
[1767400762430,5.07164662,132.79,132.75,27.11864405]
[1767400762431,5.07164662,132.78,132.75,27.11864405]
[1767400762813,5.72484172,132.78,132.76,0.70792095]
[1767400763012,0.6531951,132.78,132.75,8.24087763]
[1767400769347,0.6531951,132.78,132.76,0.70113081]
[1767400770319,0.68649642,132.79,132.76,8.23338803]
[1767400771342,0.68649642,132.79,132.77,0.65710167]
[1767400771523,0.78649642,132.8,132.77,8.18889587]
[1767400785453,0.78649642,132.8,132.76,8.18949094]
[1767400787353,0.78649642,132.8,132.77,8.18884753]
[1767400792959,0.78649642,132.8,132.77,0.65710167]
[1767400793960,0.78649642,132.8,132.76,7.53215844]
[1767400794156,0.78649642,132.8,132.76,8.18926011]
[1767400794348,0.68649642,132.79,132.76,8.18926011]
[1767400800470,0.80353305,132.8,132.77,0.67013488]
[1767400800670,0.80353305,132.8,132.73,0.67013488]
[1767400800671,0.70353305,132.77,132.73,0.67013488]
[1767400800876,2.90159365,132.77,132.73,0.67013488]
[1767400801166,0.70353305,132.76,132.74,0.67013488]
[1767400801547,2.90159365,132.77,132.74,8.20351781]
[1767400802470,4.13757457,132.77,132.74,8.20351781]
[1767400805374,0.70353305,132.77,132.74,8.20351781]
[1767400806447,4.13757457,132.77,132.74,8.20351781]
[1767400806862,0.70353305,132.76,132.73,8.2042017]
[1767400807068,0.70353305,132.76,132.73,0.67013488]
[1767400807069,0.70353305,132.75,132.73,0.67013488]
[1767400808256,0.70353305,132.75,132.73,8.2040446]
[1767400809282,0.70353305,132.76,132.73,8.2040446]
[1767400809773,4.13757457,132.77,132.74,0.67013488]
[1767400810274,0.70353305,132.77,132.74,0.67013488]
[1767400811054,0.70353305,132.77,132.74,8.20352187]
[1767400812983,4.13757457,132.77,132.74,8.20352187]
[1767400814971,4.13757457,132.77,132.75,0.67013488]
[1767400815192,4.13757457,132.77,132.75,0.6408654]
[1767400817963,4.13757457,132.77,132.74,0.67013488]
[1767400820001,4.13757457,132.77,132.74,8.20361827]
[1767400821598,0.70353305,132.76,132.74,8.20361827]
[1767400821803,0.70353305,132.76,132.74,0.67013488]
[1767400822108,4.13757457,132.76,132.74,0.67013488]
[1767400822706,4.13757457,132.76,132.73,8.20396353]
[1767400823297,4.13757457,132.76,132.74,0.67013488]
[1767400824780,4.13757457,132.76,132.73,8.20396353]
[1767400825795,0.70353305,132.74,132.72,8.20457952]
[1767400825970,3.43404152,132.75,132.73,0.67013488]
[1767400826171,4.13757457,132.76,132.73,0.67013488]
[1767400833999,0.66725733,132.75,132.72,0.72332644]
[1767400835006,0.66725733,132.75,132.73,0.72332644]
[1767400836506,11.63433411,132.75,132.72,0.72332644]
[1767400839699,4.10129885,132.75,132.72,0.72332644]
[1767400839900,0.66725733,132.75,132.72,0.72332644]
[1767400841385,4.10129885,132.76,132.73,0.72332644]
[1767400841607,4.10129885,132.77,132.73,0.72332644]
[1767400841808,5.07375907,132.76,132.73,0.72332644]
[1767400842310,0.66725733,132.77,132.73,0.72332644]
[1767400843307,0.66725733,132.77,132.74,8.25685062]
[1767400845514,0.66725733,132.77,132.75,0.72332644]
[1767400846808,4.10129885,132.78,132.75,8.25623459]
[1767400847013,5.07839362,132.77,132.75,8.25623459]
[1767400849424,5.74565095,132.77,132.75,8.25623459]
[1767400849604,0.66725733,132.77,132.75,8.25623459]
[1767400851211,0.66725733,132.77,132.75,0.72332644]
[1767400860939,0.66725733,132.77,132.74,8.20076488]
[1767400861154,0.707644,132.76,132.74,0.66747597]
[1767400861828,0.707644,132.76,132.73,7.53395905]
[1767400861829,0.707644,132.75,132.73,7.53395905]
[1767400862032,0.707644,132.75,132.73,8.20143502]
[1767400862215,0.707644,132.76,132.74,8.20099984]
[1767400864732,0.707644,132.76,132.74,0.66747597]
[1767400866438,0.707644,132.76,132.73,0.66747597]
[1767400866439,0.707644,132.75,132.73,0.66747597]
[1767400870439,2.90551779,132.76,132.73,8.20151686]
[1767400870737,0.707644,132.76,132.74,0.66747597]
[1767400871037,0.707644,132.76,132.73,8.20151686]
[1767400890857,0.71190087,132.77,132.74,0.6674652]
[1767400891067,0.1,132.8,132.77,0.6674652]
[1767400891350,0.1,132.8,132.78,0.6674652]
[1767400891556,0.81190087,132.8,132.78,0.6674652]
[1767400892140,0.81190087,132.8,132.77,2.86533899]
[1767400892547,0.81190087,132.8,132.78,0.6674652]
[1767400893964,0.81190087,132.8,132.77,10.39685777]
[1767400894147,0.81190087,132.8,132.77,8.19898398]
[1767400901270,0.81190087,132.8,132.74,0.75335241]
[1767400901271,0.71190087,132.77,132.74,0.6674652]
[1767400902171,0.71190087,132.77,132.74,8.20073257]
[1767400909472,0.71190087,132.77,132.74,7.53326737]
[1767400909972,0.71190087,132.76,132.73,8.20141692]
[1767400910975,0.68190087,132.76,132.73,8.20141692]
[1767400911369,2.87977466,132.76,132.73,8.20141692]
[1767400912379,0.68190087,132.76,132.73,8.20141692]
[1767400913878,2.87977466,132.76,132.73,8.20141692]
[1767400920581,0.67805832,132.75,132.72,8.22818697]
[1767400923290,7.5312547,132.78,132.74,0.69362179]
[1767400923587,2.19787379,132.77,132.74,0.69362179]
[1767400924591,3.43428853,132.77,132.74,8.22711333]
[1767400925392,0.67805832,132.76,132.74,7.53349154]
[1767400925692,0.67805832,132.76,132.74,8.22711333]
[1767400926186,0.67805832,132.76,132.74,7.53349154]
[1767400926394,0.67805832,132.77,132.74,8.22711333]
[1767400926594,4.11234685,132.77,132.74,8.22711333]
[1767400928992,0.67805832,132.77,132.74,8.22711333]
[1767400930387,0.64805832,132.77,132.74,8.22711333]
[1767400930903,3.43428853,132.77,132.74,8.22711333]
[1767400931073,3.43428853,132.76,132.72,8.22786606]
[1767400931389,3.43428853,132.76,132.73,0.69362179]
[1767400932477,4.11234685,132.76,132.73,0.69362179]
[1767400932998,0.67805832,132.75,132.72,8.22786606]
[1767400933299,0.67805832,132.75,132.73,0.69362179]
[1767400933700,4.11234685,132.76,132.73,0.69362179]
[1767400934003,0.67805832,132.76,132.73,0.69362179]
[1767400934393,0.67805832,132.76,132.73,8.22766913]
[1767400937909,0.67805832,132.79,132.76,0.69362179]
[1767400938091,0.1,132.8,132.77,0.69362179]
[1767400938989,0.77805832,132.8,132.77,0.69362179]
[1767400939494,0.1,132.8,132.77,0.69362179]
[1767400940104,0.1,132.8,132.78,8.22487649]
[1767400940898,0.1,132.81,132.79,0.69362179]
[1767400941298,1e-08,132.81,132.8,0.69362179]
[1767400943116,1e-08,132.81,132.8,8.22374227]
[1767400943803,0.77805832,132.84,132.81,0.69362179]
[1767400944113,0.1,132.84,132.82,0.69362179]
[1767400944714,0.77805832,132.84,132.82,0.69362179]
[1767400944911,0.77805832,132.84,132.81,4.12791032]
[1767400945205,0.67805832,132.85,132.82,8.22260838]
[1767400946794,0.67805832,132.85,132.82,11.65689691]
[1767400947003,0.67805832,132.85,132.82,7.52898659]
[1767400947206,0.67805832,132.85,132.82,10.96327512]
[1767400947598,0.67805832,132.85,132.82,11.65689691]
[1767400949192,0.67805832,132.85,132.82,8.22260838]
[1767400949597,0.67805832,132.85,132.82,7.52898659]
[1767400950795,0.67805832,132.85,132.82,8.25272156]
[1767400952517,0.69551714,132.83,132.8,0.75301204]
[1767400952823,0.69551714,132.83,132.8,0.72373497]
[1767400953995,0.69551714,132.83,132.8,8.25362098]
[1767400956621,4.12980567,132.84,132.81,0.72373497]
[1767400957125,0.69551714,132.83,132.81,0.72373497]
[1767400958815,0.69551714,132.83,132.81,8.25323162]
[1767400964735,0.69551714,132.83,132.8,8.25385545]
[1767400966034,0.69551714,132.85,132.81,0.72373497]
[1767400968117,0.69551714,132.85,132.82,8.25272156]
[1767400969440,0.69551714,132.85,132.83,0.72373497]
[1767400970039,0.69551714,132.85,132.82,8.25272156]
[1767400971147,0.69551714,132.85,132.83,0.72373497]
[1767400972340,0.69551714,132.86,132.83,8.25184008]
[1767400973242,0.69551714,132.86,132.83,7.52810511]
[1767400973447,0.69551714,132.85,132.83,7.52810511]
[1767400973821,0.69551714,132.85,132.83,6.55446958]
[1767400977654,0.099,132.83,132.8,8.25345075]
[1767400977861,0.099,132.83,132.81,7.52940012]
[1767400978426,0.099,132.83,132.8,7.53012048]
[1767400979026,4.02980567,132.84,132.81,0.72373497]
[1767400979334,4.02980567,132.84,132.8,8.25385545]
[1767400980146,4.02980567,132.84,132.81,0.71383925]
[1767400981748,0.099,132.83,132.8,8.24395973]
[1767400982043,7.52730147,132.85,132.81,0.71383925]
[1767400982246,0.099,132.86,132.82,0.71383925]
[1767400982449,5.16370958,132.86,132.83,0.71383925]
[1767400982750,0.099,132.86,132.83,0.71383925]
[1767400983050,0.069,132.86,132.83,0.71383925]
[1767400983744,0.069,132.86,132.83,8.24223541]
[1767400984334,5.13805522,132.86,132.83,8.24223541]
[1767400987762,0.069,132.86,132.83,8.24223541]
[1767400987963,5.14264865,132.86,132.83,8.24223541]
[1767400989969,2.76022746,132.85,132.82,8.24276445]
[1767400990661,0.099,132.84,132.82,8.24276445]